Cogmind - Beta 16 @@@ ROGUE MODE // 2025.10.26 @ 07:23:19 Player: Cmdr.Laserstrahl Result: Destroyed by as-81715 with Assembled Maul Performance ------------- Evolutions (0) 0 Regions Visited (2) 400 Robots Destroyed (23) 115 Value Destroyed (209) 209 Prototype IDs (2) 40 Alien Tech Used (0) 0 Bonus (0) 0 TOTAL SCORE: 764 Bonus ------- None Cogmind --------- Core Integrity 0/250 Matter 212/300 Energy 82/100 System Corruption 12% Temperature Cool (12) Movement Core (50) Location -10/Mines Parts ------- > --- POWER (1) -------- (None) > --- PROPULSION (2) --- (None) > --- UTILITY (2) ------ (None) > --- WEAPON (2) ------- Datajack > --- INVENTORY (5) ---- Wheel Small Storage Unit EM Pulse Gun Medium Laser Hammer Peak State ------------ > --- POWER ------------ Ion Engine > --- PROPULSION ------- Wheel Wheel > --- UTILITY ---------- Large Storage Unit Seismic Detector > --- WEAPON ----------- EM Pulse Gun Assault Rifle > --- INVENTORY -------- Ion Engine Wheel Wheel Small Storage Unit High-capacity Matter Pod Medium Laser Medium Laser Light Assault Rifle Light Assault Rifle Grenade Launcher [Rating: 8] Favorites ----------- Power Ion Engine Engine Ion Engine Propulsion Wheel Treads Light Treads Wheel Wheel Utility Seismic Detector Device Seismic Detector Storage Large Storage Unit Protection Light Armor Plating Weapon Assault Rifle Energy Gun EM Pulse Gun Ballistic Gun Assault Rifle Launcher Grenade Launcher Special Melee Weapon Datajack Build | -11 -10 -10 ------- Run | Yrd Mat Min Slots Evolved . | . . . Power . | . . . Propulsion . | . . . Utility . | . . . Weapon . | . . . Parts Attached 15 | 8 3 4 Power 1 | 1 . . Engine 1 | 1 . . Core . | . . . Reactor . | . . . Propulsion 4 | 3 1 . Treads 1 | 1 . . Leg . | . . . Wheel 3 | 2 1 . Hover . | . . . Flight . | . . . Utility 4 | 2 1 1 Device 1 | 1 . . Storage 2 | 1 1 . Processor . | . . . Hackware . | . . . Protection 1 | . . 1 Artifact . | . . . Weapon 6 | 2 1 3 Energy Gun 2 | 1 . 1 Energy Cannon . | . . . Ballistic Gun 2 | 1 . 1 Ballistic Cannon . | . . . Launcher 1 | . 1 . Special Weapon . | . . . Impact Weapon . | . . . Slashing Weapon . | . . . Piercing Weapon . | . . . Special Melee Weapon 1 | . . 1 Unidentified Prototypes . | . . . Parts Lost 7 | . . 7 Power 1 | . . 1 Propulsion 2 | . . 2 Utility 2 | . . 2 Weapon 2 | . . 2 Highest Loss Streak 7 | . . 7 To Critical Strikes . | . . . Average Backups 9 | 3 9 14 Power . | . 1 1 Propulsion 2 | 1 2 2 Utility 1 | . 1 2 Weapon 4 | 1 4 7 Tool/Special . | . . . Unused Backups 11 | . 2 9 Power 1 | . . 1 Propulsion 3 | . 1 2 Utility 1 | . . 1 Weapon 6 | . 1 5 Tool/Special . | . . . Average Slot Usage (%) 98 | . 100 90 Engine 14 | . 14 14 Wheel 28 | . 28 28 Device 13 | . 14 7 Storage 14 | . 14 14 Energy Gun 12 | . 13 2 Ballistic Gun 13 | . 14 11 Launcher 1 | . . 7 Peak Build Rating 8 | 7 8 8 Average Rating 7 | 4 7 6 On Entrance 5 | . 7 8 Avg Prop Armor Cover (%) . | . . . Naked Turns 1 | . . 1 Heaviest Build 31 | 15 31 31 Greatest Support 20 | 20 20 20 Greatest Overweight (x) 1 | . 1 1 Average Overweight (x) . | . . . Largest Inventory Capacity 15 | 8 15 15 Average Capacity 11 | 7 11 14 Most Carried 15 | 6 15 15 Average Carried 9 | 4 9 13 Final Capacity 15 | 8 15 5 Final Carried 15 | 6 15 5 Class Distribution -------------------- 100% | Mutant Dominant Class ---------------- Mutant | -10/Materials Mutant | -10/Mines Resources | -11 -10 -10 ----------- Run | Yrd Mat Min Matter Collected 591 | 298 291 2 Remotely . | . . . Salvage Created 633 | 136 460 37 Parts 38 | 9 26 3 Haulers Intercepted 1 | . 1 . Recyclers Shooed 1 | 1 . . Parts Field Recycled . | . . . Retrieved Matter . | . . . Parts Self-Destructed . | . . . Prevented . | . . . Parts Restored . | . . . Kills | -11 -10 -10 ------- Run | Yrd Mat Min Combat Hostiles Destroyed 18 | . 9 9 Guns 10 | . 9 1 AOE 8 | . . 8 Classes Destroyed 8 | 2 5 1 Worker 1 | . 1 . Builder 1 | . 1 . Tunneler 3 | 2 1 . Hauler 1 | . 1 . Recycler 3 | 1 2 . Watcher 2 | . 2 . Swarmer 12 | . 9 3 Assembled 6 | . . 6 Best Kill Streak 9 | 2 9 8 Combat Bots Only 8 | . 6 8 Max Kills in Single Turn 2 | 1 2 2 Gunslinging 1 | . 1 . Exploded 2 | . . 2 Melee . | . . . Uniques/NPCs Destroyed . | . . . Combat | -11 -10 -10 -------- Run | Yrd Mat Min Hostile Shots Fired 80 | . 27 53 Missed 23 | . 11 12 Hits 57 | . 16 41 Melee 10 | . . 10 Projectile 47 | . 16 31 Damage Taken 860 | . 118 742 Core 264 | . 26 238 Absorbed by Shields . | . . . Core Remaining (%) 100 | 100 . . Volleys Fired 51 | 6 36 9 Largest 2 | 2 2 2 Hottest 70 | 60 60 70 Shots Fired 100 | 12 71 17 Gun 93 | 12 70 11 Cannon . | . . . Launcher 7 | . 1 6 Special . | . . . Kinetic 48 | 6 35 7 Thermal 4 | . . 4 Explosive 7 | . 1 6 Electromagnetic 41 | 6 35 . Robot Hit Streak 7 | 3 7 3 Robot Miss Streak 5 | 1 5 3 Penetration Max . | . . . Secondary Targets 2 | . 2 . Max Gunslinging Chain 1 | . 1 . Shots Hit Robots 52 | 7 37 8 Core Hits 46 | 4 20 22 Critical Kills . | . . . Critical Parts Destroyed . | . . . Critical Strikes 1 | . . 1 Burn 1 | . . 1 Melee Attacks . | . . . Impact . | . . . Slashing . | . . . Piercing . | . . . Sneak Attacks . | . . . Combat Hostiles . | . . . Follow-up Attacks . | . . . Damage Inflicted 1280 | 86 572 622 Guns 700 | 86 544 70 Cannons . | . . . Explosions 580 | . 28 552 Melee . | . . . Ramming . | . . . Kinetic 336 | 49 255 32 Thermal 66 | . 28 38 Explosive 552 | . . 552 Electromagnetic 326 | 37 289 . Impact . | . . . Slashing . | . . . Piercing . | . . . Highest Corruption 12 | . . 12 Average Corruption 10 | . . 10 Corruption Purged . | . . . Corruption Blocked . | . . . Effects 1 | . . 1 Misfires 1 | . . 1 Overload Shots . | . . . Overflow Damage . | . . . Projectiles . | . . . Explosions . | . . . Melee . | . . . Knockbacks . | . . . Impact . | . . . Kinetic . | . . . Secondary . | . . . Self-Inflicted Damage 53 | . . 53 Shots 2 | . . 2 Rammed . | . . . Targets Rammed . | . . . Kicked . | . . . Crushed . | . . . Highest Temperature 67 | . 20 67 Average Temperature 29 | . 20 35 Received Heat Transfer . | . . . Siege Activations . | . . . Martial Activations . | . . . Shielding Activations . | . . . Robots Disrupted . | . . . Combat Hostiles . | . . . Robots Corrupted . | . . . Combat Hostiles . | . . . Parts Fried . | . . . Impact Corruptions . | . . . Robots Melted . | . . . Combat Hostiles . | . . . Parts Melted . | . . . Heat Transferred 235 | . 50 185 Parts Sabotaged . | . . . Parts Stolen . | . . . Parts Stripped . | . . . Power Chain Reactions 1 | . 1 . Alert | -11 -10 -10 ------- Run | Yrd Mat Min Maximum Alert Level 1 | . 1 . Low Security (%) 82 | 100 77 100 Level 1 17 | . 22 . Level 2 . | . . . Level 3 . | . . . Level 4 . | . . . Level 5 . | . . . High Security . | . . . Max Security . | . . . Peak Influence 226 | 10 226 117 Initial 3 | . 3 . Average 103 | 1 122 84 Influence Increases 474 | 15 336 123 Destroy 0b10 Robot/C 240 | . 180 60 Destroy 0b10 Robot/NC 55 | 15 40 . Destroy Leader 46 | . 36 10 Successful Hack 22 | . 22 . Disable Machine 15 | . . 15 Destroy Structure 51 | . 13 38 Lose Combat Pursuer 45 | . 45 . Influence Decreases 441 | 10 341 90 Entered New Map 2 | . 2 . Time Decay 219 | 10 189 20 Lost Part 70 | . . 70 Purge Threat 150 | . 150 . Squads Dispatched . | . . . Investigation . | . . . Extermination . | . . . Reinforcement . | . . . Assault . | . . . Garrison . | . . . Intercept . | . . . Searches Triggered . | . . . Construction Impeded . | . . . Haulers Reinforced . | . . . Active Scanning Responses . | . . . Cargo Convoy Interrupts . | . . . Stealth | -11 -10 -10 --------- Run | Yrd Mat Min Distress Signals 1 | . 1 . Communications Jammed . | . . . Distress Signals . | . . . Times Spotted 41 | . 20 21 Peak Tracking Total 20 | . 4 20 Tactical Retreats 2 | . 1 1 Traps | -11 -10 -10 ------- Run | Yrd Mat Min Traps Triggered . | . . . Indirectly . | . . . Trap Hack Attempts . | . . . Triggered . | . . . Disarmed . | . . . Reprogrammed . | . . . Reused . | . . . Traps Extracted . | . . . Installed . | . . . Triggered . | . . . Machines | -11 -10 -10 ---------- Run | Yrd Mat Min Machines Disabled 1 | . . 1 Max in Single Turn 1 | . . 1 Machines Repaired . | . . . Machines Dismantled . | . . . Machines Sabotaged . | . . . Overloaded Fab Kills . | . . . Hacking | -11 -10 -10 --------- Run | Yrd Mat Min Machines Accessed 6 | . 6 . Terminals 6 | . 6 . Fabricators . | . . . Repair Stations . | . . . Recycling Units . | . . . Scanalyzers . | . . . Garrison Access . | . . . Total Hacks 15 | . 15 . Successful 10 | . 10 . Failed 5 | . 5 . Catastrophic . | . . . Database Lockouts . | . . . Manual 9 | . 9 . Terminals 15 | . 15 . Fabricators . | . . . Repair Stations . | . . . Recycling Units . | . . . Scanalyzers . | . . . Garrison Access . | . . . Terminal Hacks 5 | . 5 . Prototype ID Bank 1 | . 1 . Terminal Index 1 | . 1 . Alert Level 1 | . 1 . Unreport Threat 1 | . 1 . Locate Traps 1 | . 1 . Fabricator Hacks . | . . . Repair Station Hacks . | . . . Recycling Unit Hacks . | . . . Scanalyzer . | . . . Garrison Access Hacks . | . . . Unauthorized Hacks 5 | . 5 . Terminals 5 | . 5 . Botnet 5 | . 5 . Fabricators . | . . . Repair Stations . | . . . Recycling Units . | . . . Scanalyzers . | . . . Garrison Access . | . . . Data Cores Recovered . | . . . Used . | . . . Hacking Detections 4 | . 4 . Full Trace Events . | . . . Feedback Events . | . . . Feedback Blocked . | . . . Robot Schematics Acquired . | . . . Robots Built . | . . . Authchips . | . . . Time . | . . . Total Robot Build Rating . | . . . Part Schematics Acquired . | . . . Parts Built . | . . . Authchips . | . . . Time . | . . . Total Part Build Rating . | . . . Part Studies Acquired . | . . . Parts Repaired . | . . . Time . | . . . Parts Recycled . | . . . Recycled Matter . | . . . Retrieved Matter . | . . . Retrieved Components . | . . . Parts Scanalyzed . | . . . Part Schematics Acquired . | . . . Parts Damaged . | . . . Bothacking | -11 -10 -10 ------------ Run | Yrd Mat Min Used RIF Installer . | . . . Robots Hacked . | . . . Non-combat . | . . . Combat . | . . . Robot Hacks Applied . | . . . Relay Couplers Released . | . . . Fabnet Peak Effective % . | . . . Robots Rewired . | . . . Allies Hacked . | . . . Hacks Repelled . | . . . Allies | -11 -10 -10 -------- Run | Yrd Mat Min Total Allies . | . . . Largest Group . | . . . Highest-Rated Group . | . . . Highest-Rated Ally . | . . . Total Orders . | . . . Ally Attacks . | . . . Total Damage . | . . . Kills . | . . . Allies Corrupted . | . . . Allies Melted . | . . . Intel | -11 -10 -10 ------- Run | Yrd Mat Min Active Infowar (turns) 492 | 26 445 21 Seismic 492 | 26 445 21 Robot Analysis Total . | . . . Derelict Logs Recovered . | . . . Drone Launches . | . . . Drone Recoveries . | . . . Exploration | -11 -10 -10 ------------- Run | Yrd Mat Min Turns Passed 568 | 71 445 52 Spaces Moved 409 | 43 343 23 Core 13 | 10 . 3 Treads 1 | 1 . . Legs . | . . . Wheels 395 | 32 343 20 Hover . | . . . Flight . | . . . Fastest Speed 50 | 50 80 50 Average Speed 88 | 74 89 89 Slowest Speed 160 | 160 95 95 Overloaded Moves . | . . . Propulsion Burnouts . | . . . Robots Hopped . | . . . Potential Cave-ins . | . . . Cave-ins Triggered . | . . . Exploration Rate (%) 26 | 4 64 11 Regions Visited 2 Branch Regions 1 Pre-discovered Areas . | . . . Known Exits Taken . | . . . Unknown Exits Taken 2 | 1 1 . Scrap Searched . | . . . Spaces Dug . | . . . Terrain Destroyed 66 | . 12 54 Melee . | . . . Projectile . | . . . AOE 66 | . 12 54 Terrain Rammed . | . . . Walls Destroyed . | . . . Machines Disabled . | . . . Actions | -11 -10 -10 --------- Run | Yrd Mat Min Total 516 | 68 410 38 Wait 15 | 1 12 2 Move 407 | 42 342 23 Hop . | . . . Pick Up 23 | 11 12 . Fast Attach 3 | 2 . 1 Attach 8 | 5 . 3 Detach . | . . . Swap 4 | 1 3 . Drop 5 | . 5 . Fire 51 | 6 36 9 Melee . | . . . Ram . | . . . Kick . | . . . Crush . | . . . Escape Stasis . | . . . Rewire . | . . . Trap . | . . . Miscellaneous . | . . . Route ------- -11/Scrapyard -10/Materials (discovered 2 exits: [*Mat] / [*Min]) -10/Mines History --------- Turn | Location | Event 43 | -11/Scrapyard | Discovered new exit (range 16) 72 | -11/Scrapyard | Entered Materials 134 | -10/Materials | Discovered new exit (range 13) 295 | -10/Materials | Discovered new exit (range 16) 301 | -10/Materials | Build established: Mutant 517 | -10/Materials | Entered Mines 518 | -10/Mines | Assembled infested the area 557 | -10/Mines | Destroyed 8 combat bots 565 | -10/Mines | System corruption reached 10% 566 | -10/Mines | Core integrity fell below 50% 566 | -10/Mines | Released all parts (3) 569 | -10/Mines | Core integrity fell below 20% 569 | -10/Mines | Destroyed by as-81715 with Assembled Maul Last Messages --------------- 00538_ Seismic Detector destroyed. 00539_ The unstable cave ceiling collapses. 00541_ Knocked back. 00544_ Assault Rifle destroyed. 00560_ as-28380 destroyed. 00561_ Ion Engine destroyed. 00561_ System corrupted by crushing effect (+4). 00561_ Wheel destroyed. 00561_ System corrupted by crushing effect (+3). 00562_ Lgt. Armor Plating destroyed. 00564_ Wheel destroyed. 00564_ System corrupted by crushing effect (+5). 00566_ System corrupted: FCS attempts to trigger Med. Laser. 00566_ System corrupted: Med. Laser misfires. 00566_ as-23669 suffers critical hit (Burn). 00566_ Released Lrg. Storage Unit. 00566_ Released Med. Laser. 00566_ Released Lgt. Assault Rifle. 00567_ Acquired Datajack. Map ----- +----------------------------------------------------+ | | | | | | | ??????????????????????????????????????????????? | | ??????????????????????????????????????????????? | | ??????"#??????????????????????????????????????? | | ?????? ##????????????????????????????????????? | | ????? ?#??????????????????????????????????? | | ????? ??????????????????????????????????? | | ????? ???????????????????????????????????? | | ????## ???????????????????????????????????? | | ????# # ???????????????????????????????????? | | ???## #???????????????????????????????????? | | ???# % #???????????????????????????????????? | | ???# ?#?????????????????????????????????? | | ???? #?????????????????????????????????? | | ????# # #?????????????????????????????????? | | ????# # ####??????????????????????????????? | | ??####% #??????????????????????????????? | | ??# = ### #??????????????????????????????? | | ??# ## #??????????????????????????????? | | ??# [ # ## #??????????????????????????????? | | ??# "# ##????####?????????????????????? | | ??# " ##?###%!##????????????????????? | | ??# ###aaaa]#????????????????????? | | ??# ;; a!@*##????????????????????? | | ??# "## a [##?????????????????????? | | ??####""""### ##??????????????????????? | | ?????####### ##???????????????????????? | | ??????????# #######????????????????????????? | | ??????????######??????????????????????????????? | | ??????????????????????????????????????????????? | | ??????????????????????????????????????????????? | | ??????????????????????????????????????????????? | | ??????????????????????????????????????????????? | | ??????????????????????????????????????????????? | | ??????????????????????????????????????????????? | | ??????????????????????????????????????????????? | | ??????????????????????????????????????????????? | | ??????????????????????????????????????????????? | | ??????????????????????????????????????????????? | | ??????????????????????????????????????????????? | | ??????????????????????????????????????????????? | | ??????????????????????????????????????????????? | | ??????????????????????????????????????????????? | | ??????????????????????????????????????????????? | | ??????????????????????????????????????????????? | | ??????????????????????????????????????????????? | | ??????????????????????????????????????????????? | | ??????????????????????????????????????????????? | +----------------------------------------------------+ Best States ------------- Heat Dissipation 25 Energy Generation 10 Energy Capacity 250 Matter Stores 300 Matter Capacity 300 Sight Range 16 Terrain Scan Density 10 Armor Coverage 150 Evasion (%) 50 Recoil Reduction 1 Item Schematics ----------------- None Robot Schematics ------------------ None Fabricated ------------ Nothing Repaired ---------- Nothing Studied --------- None Alien Tech Used ----------------- None Achievements -------------- None Challenges ------------ None Game ------ Seed BoltAdvancedAutopenetrator Manual? 0 Play Time 00:15:43 Cumulative 401.2 hours Start 2025.10.26 @ 07:09:29 End 2025.10.26 @ 07:23:19 Sessions 1 Manual Loads 0 Difficulty Rogue Special Mode None Game No. 155 Rogue 152 Adventurer 3 Explorer 0 Win Type - Total 0 Types 0/0/0/0/0/0/0/0/0/0 Lore% 26 Gallery% 51 Achievement% 29 Wizard Run 0 Options --------- Layout 2 ASCII 0 Keyboard 0 Movement Mouse Keybinds 0 Fullscreen 1 Font 24/Smallcaps Map View 50x44 Zoom Use 0% Tactical HUD 1 Map Filters NONE Filters NONE Steam 1 RUN: bb908852-e45d-4139-a413-8bd073be8590